fUSD/lending_fUSD_20240125
["ID","MTS","AMOUNT","RATE_DAILY","PERIOD"]
[312717860,1706188822975,-500.0,0.00049863,31]
[312717861,1706188823002,-500.0,0.00049863,31]
[312717862,1706188823029,-500.0,0.00049863,31]
[312717863,1706188823056,-723.91,0.00049863,31]
[312717864,1706188823083,-531.51,0.00049863,31]
[312717865,1706188823109,-160.57014798,0.00049863,31]
[312717866,1706188823135,-500.0,0.00049863,31]
[312717867,1706188823162,-500.0,0.00049863,31]
[312717868,1706188823188,-500.0,0.00049863,31]
[312717869,1706188823215,-500.0,0.00049863,31]
[312717870,1706188823242,-500.0,0.00049863,31]
[312717871,1706188823269,-500.0,0.00049863,31]
[312717872,1706188823298,-500.0,0.00049863,31]
[312717873,1706188823325,-500.0,0.00049863,31]
[312717874,1706188823353,-500.0,0.00049863,31]
[312717875,1706188823381,-500.0,0.00049863,31]
[312717876,1706188823410,-500.0,0.00049863,31]
[312717877,1706188823438,-500.0,0.00049863,31]
[312717878,1706188823467,-500.0,0.00049863,31]
[312717879,1706188823495,-500.0,0.00049863,31]
[312717880,1706188823524,-564.82022517,0.00049863,31]
[312717881,1706188823551,-500.0,0.00049863,31]
[312717882,1706188823577,-500.0,0.00049863,31]
[312717883,1706188823605,-500.0,0.00049863,31]
[312717884,1706188823630,-500.0,0.00049863,31]
[312717885,1706188823658,-518.42,0.00049863,31]
[312717886,1706188823685,-500.0,0.00049863,31]
[312717887,1706188823711,-556.54,0.00049863,31]
[312717888,1706188823736,-500.0,0.00049863,31]
[312717889,1706188823761,-500.0,0.00049863,31]
[312717890,1706188823787,-500.0,0.00049863,31]
[312717891,1706188823817,-500.0,0.00049863,31]
[312717892,1706188824000,-250.0,0.00049863,31]
[312717893,1706188824031,-500.0,0.00049863,31]
[312717894,1706188824062,-568.52,0.00049863,31]
[312717895,1706188824091,-500.0,0.00049863,31]
[312717896,1706188824119,-653.44,0.00049863,31]
[312717897,1706188824147,-500.0,0.00049863,31]
[312717898,1706188824174,-500.0,0.00049863,31]
[312717899,1706188824201,-500.0,0.00049863,31]
[312717900,1706188824229,-500.0,0.00049863,31]
[312717901,1706188824258,-500.0,0.00049863,31]
[312717902,1706188824284,-500.0,0.00049863,31]
[312717903,1706188824312,-500.0,0.00049863,31]
[312717904,1706188824340,-500.0,0.00049863,31]
[312717905,1706188824367,-500.0,0.00049863,31]
[312717906,1706188824395,-500.0,0.00049863,31]
[312717907,1706188824424,-500.0,0.00049863,31]
[312717908,1706188824452,-628.96,0.00049863,31]
[312717909,1706188824480,-190.61694316,0.00049863,31]
[312717910,1706188824509,-500.0,0.00049863,31]
[312717911,1706188824536,-523.72,0.00049863,31]
[312717912,1706188824562,-500.0,0.00049863,31]
[312717913,1706188824588,-500.0,0.00049863,31]
[312717914,1706188824617,-899.54,0.00049863,31]
[312717915,1706188824646,-500.0,0.00049863,31]
[312717916,1706188824675,-500.0,0.00049863,31]
[312717917,1706188824704,-500.0,0.00049863,31]
[312717918,1706188824733,-500.0,0.00049863,31]
[312717919,1706188824763,-500.0,0.00049863,31]
[312717920,1706188824791,-500.0,0.00049863,31]
[312717921,1706188824816,-500.0,0.00049863,31]
[312717922,1706188824845,-500.0,0.00049863,31]
[312717923,1706188824872,-500.0,0.00049863,31]
[312717924,1706188824898,-500.0,0.00049863,31]
[312717925,1706188824926,-500.0,0.00049863,31]
[312717926,1706188824953,-500.0,0.00049863,31]
[312717927,1706188824983,-500.0,0.00049863,31]
[312717928,1706188825009,-500.0,0.00049863,31]
[312717929,1706188825037,-510.67014394,0.00049863,31]
[312717930,1706188825064,-500.0,0.00049863,31]
[312717931,1706188825091,-528.11,0.00049863,31]
[312717932,1706188825117,-500.0,0.00049863,31]
[312717933,1706188825144,-500.0,0.00049863,31]
[312717934,1706188825172,-500.0,0.00049863,31]
[312717935,1706188825201,-1037.12,0.00049863,31]
[312717936,1706188825230,-500.0,0.00049863,31]
[312717937,1706188825258,-500.0,0.00049863,31]
[312717938,1706188825285,-500.0,0.00049863,31]
[312717939,1706188825313,-500.0,0.00049863,30]
[312717940,1706188825340,-500.0,0.00049863,31]
[312717941,1706188825367,-500.0,0.00049863,31]
[312717942,1706188825392,-500.0,0.00049863,31]
[312717943,1706188825421,-500.0,0.00049863,31]
[312717944,1706188825451,-500.0,0.00049863,31]
[312717945,1706188825477,-500.0,0.00049863,31]
[312717946,1706188825504,-500.0,0.00049863,31]
[312717947,1706188825533,-500.0,0.00049863,31]
[312717948,1706188825561,-500.0,0.00049863,31]
[312717949,1706188825588,-500.0,0.00049863,31]
[312717950,1706188825616,-500.0,0.00049863,31]
[312717951,1706188825643,-500.0,0.00049863,31]
[312717952,1706188825670,-500.0,0.00049863,31]
[312717953,1706188825697,-500.0,0.00049863,31]
[312717954,1706188825725,-500.0,0.00049863,31]
[312717955,1706188825754,-500.0,0.00049863,31]
[312717956,1706188825781,-500.0,0.00049863,31]
[312717957,1706188825809,-500.0,0.00049863,31]
[312717958,1706188825837,-500.0,0.00049863,31]
[312717959,1706188825865,-500.0,0.00049863,31]
[312717960,1706188825892,-500.0,0.00049863,31]
[312717961,1706188825919,-500.0,0.00049863,31]
[312717962,1706188825947,-500.0,0.00049863,31]
[312717963,1706188825975,-500.0,0.00049863,31]
[312717964,1706188826003,-500.0,0.00049863,31]
[312717965,1706188826033,-500.0,0.00049863,31]
[312717966,1706188826061,-500.0,0.00049863,31]
[312717967,1706188826091,-500.0,0.00049863,31]
[312717968,1706188826118,-500.0,0.00049863,31]
[312717969,1706188826147,-500.0,0.00049863,31]
[312717970,1706188826176,-500.0,0.00049863,31]
[312717971,1706188826204,-500.0,0.00049863,31]
[312717972,1706188826231,-533.46,0.00049863,31]
[312717973,1706188826259,-501.9,0.00049863,31]
[312717974,1706188826286,-500.0,0.00049863,31]
[312717975,1706188826314,-500.0,0.00049863,31]
[312717976,1706188826341,-1106.47,0.00049863,31]
[312717977,1706188826370,-500.0,0.00049863,31]
[312717978,1706188826398,-500.0,0.00049863,31]
[312717979,1706188826427,-500.0,0.00049863,31]
[312717980,1706188826457,-500.0,0.00049863,31]
[312717981,1706188826486,-500.0,0.00049863,31]
[312717982,1706188826517,-500.0,0.00049863,31]
[312717983,1706188826544,-3932.94,0.00049863,30]
[312717984,1706188826571,-500.0,0.00049863,31]
[312717985,1706188826598,-500.0,0.00049863,31]
[312717986,1706188826628,-553.31,0.00049863,31]
[312717987,1706188826657,-500.0,0.00049863,31]
[312717988,1706188826688,-500.0,0.00049863,31]
[312717989,1706188826715,-500.0,0.00049863,31]
[312717990,1706188826744,-1880.79,0.00049863,31]
[312717991,1706188826772,-582.46,0.00049863,31]
[312717992,1706188826801,-500.0,0.00049863,31]
[312717993,1706188826828,-500.0,0.00049863,31]
[312717994,1706188826855,-500.0,0.00049863,31]
[312717995,1706188826883,-500.0,0.00049863,31]
[312717996,1706188827070,-500.0,0.00049863,31]
[312717997,1706188827099,-3956.45,0.00049863,31]
[312717998,1706188827128,-500.0,0.00049863,31]
[312717999,1706188827156,-500.0,0.00049863,31]
[312718000,1706188827183,-500.0,0.00049863,31]
[312718001,1706188827210,-500.0,0.00049863,31]
[312718002,1706188827238,-500.0,0.00049863,31]
[312718003,1706188827265,-500.0,0.00049863,31]
[312718004,1706188827294,-500.0,0.00049863,31]
[312718005,1706188827322,-500.0,0.00049863,31]
[312718006,1706188827348,-482.42426341,0.00049863,31]
[312718007,1706188827375,-500.0,0.00049863,31]
[312718008,1706188827403,-500.0,0.00049863,31]
[312718009,1706188827432,-500.0,0.00049863,31]
[312718010,1706188827460,-500.0,0.00049863,31]
[312718011,1706188827489,-500.0,0.00049863,31]
[312718012,1706188827516,-678.41,0.00049863,31]
[312718013,1706188827544,-500.0,0.00049863,31]
[312718014,1706188827571,-500.0,0.00049863,31]
[312718015,1706188827597,-500.0,0.00049863,31]
[312718016,1706188827624,-500.0,0.00049863,31]
[312718017,1706188827653,-1000.0,0.00049863,30]
[312718018,1706188827683,-500.0,0.00049863,31]
[312718019,1706188827714,-500.0,0.00049863,31]
[312718020,1706188827743,-500.0,0.00049863,31]
[312718021,1706188827772,-500.0,0.00049863,31]
[312718022,1706188827806,-330.10985802,0.00049863,31]
[312718023,1706188827835,-500.0,0.00049863,31]
[312718024,1706188827864,-549.93,0.00049863,31]
[312718025,1706188827892,-500.0,0.00049863,31]
[312718026,1706188827922,-500.0,0.00049863,31]
[312718027,1706188827950,-500.0,0.00049863,31]
[312718028,1706188827980,-679.41,0.00049863,31]
[312718029,1706188828010,-508.28,0.00049863,31]
[312718030,1706188828038,-500.0,0.00049863,31]
[312718031,1706188828068,-509.93,0.00049863,31]
[312718032,1706188828096,-500.0,0.00049863,31]
[312718033,1706188828125,-1829.46,0.00049863,31]
[312718034,1706188828152,-500.0,0.00049863,31]
[312718035,1706188828181,-500.0,0.00049863,31]
[312718036,1706188828208,-500.0,0.00049863,31]
[312718037,1706188828237,-531.3,0.00049863,31]
[312718038,1706188828267,-192.2,0.00049863,31]
[312718039,1706188828297,-500.0,0.00049863,31]
[312718040,1706188828325,-500.0,0.00049863,31]
[312718041,1706188828353,-500.0,0.00049863,31]
[312718042,1706188828381,-500.0,0.00049863,31]
[312718043,1706188828409,-1383.36,0.00049863,31]
[312718044,1706188828437,-500.0,0.00049863,31]
[312718045,1706188828466,-500.0,0.00049863,31]
[312718046,1706188828495,-500.0,0.00049863,31]
[312718047,1706188828527,-1090.07,0.00049863,31]
[312718048,1706188828555,-1155.38,0.00049863,31]
[312718049,1706188828584,-500.0,0.00049863,31]
[312718050,1706188828614,-521.96,0.00049863,31]
[312718051,1706188828641,-684.55,0.00049863,31]
[312718052,1706188828668,-500.0,0.00049863,31]
[312718053,1706188828695,-500.0,0.00049863,31]
[312718054,1706188828722,-500.0,0.00049863,31]
[312718055,1706188828749,-500.0,0.00049863,31]
[312718056,1706188828777,-500.0,0.00049863,31]
[312718057,1706188828804,-500.0,0.00049863,31]
[312718058,1706188828833,-500.0,0.00049863,31]
[312718059,1706188828864,-500.0,0.00049863,31]
[312718060,1706188828893,-557.35,0.00049863,31]
[312718061,1706188828921,-500.0,0.00049863,31]
[312718062,1706188828950,-936.58,0.00049863,31]
[312718063,1706188828977,-500.0,0.00049863,31]
[312718064,1706188829006,-1018.72,0.00049863,31]
[312718065,1706188829034,-500.0,0.00049863,31]
[312718066,1706188829061,-500.0,0.00049863,31]
[312718067,1706188829088,-558.76,0.00049863,31]
[312718068,1706188829116,-500.0,0.00049863,31]
[312718069,1706188829144,-500.0,0.00049863,31]
[312718070,1706188829172,-753.41,0.00049863,31]
[312718071,1706188829199,-500.0,0.00049863,31]
[312718072,1706188829226,-500.0,0.00049863,31]
[312718073,1706188829252,-831.65,0.00049863,31]
[312718074,1706188829279,-500.0,0.00049863,31]
[312718075,1706188829307,-6140.75,0.00049863,31]
[312718076,1706188829335,-761.84,0.00049863,31]
[312718077,1706188829366,-500.0,0.00049863,31]
[312718078,1706188829395,-675.65,0.00049863,31]
[312718079,1706188829425,-500.0,0.00049863,31]
[312718080,1706188829455,-487.86960354,0.00049863,31]
[312718081,1706188829484,-711.97,0.00049863,31]
[312718082,1706188829512,-500.0,0.00049863,31]
[312718083,1706188829542,-507.48,0.00049863,31]
[312718084,1706188829571,-500.0,0.00049863,31]
[312718085,1706188829599,-500.0,0.00049863,31]
[312718086,1706188829629,-500.0,0.00049863,31]
[312718087,1706188829657,-500.0,0.00049863,31]
[312718088,1706188829686,-704.71,0.00049863,31]
[312718089,1706188829716,-500.0,0.00049863,31]
[312718090,1706188829744,-717.59,0.00049863,31]
[312718091,1706188829771,-500.0,0.00049863,31]
[312718092,1706188829797,-500.0,0.00049863,31]
[312718093,1706188829824,-1413.36,0.00049863,31]
[312718094,1706188829850,-1123.79,0.00049863,31]
[312718095,1706188829877,-500.0,0.00049863,31]
[312718096,1706188829902,-500.0,0.00049863,31]
[312718097,1706188829928,-500.0,0.00049863,31]
[312718098,1706188829957,-500.0,0.00049863,31]
[312718099,1706188830143,-789.32,0.00049863,31]
[312718100,1706188830172,-500.0,0.00049863,31]
[312718101,1706188830200,-2527.99,0.00049863,31]
[312718102,1706188830228,-500.0,0.00049863,31]
[312718103,1706188830256,-3360.31,0.00049863,31]
[312718104,1706188830286,-500.0,0.00049863,31]
[312718105,1706188830315,-500.0,0.00049863,31]
[312718106,1706188830341,-500.0,0.00049863,31]
[312718107,1706188830371,-2252.57,0.00049863,31]
[312718108,1706188830402,-419.3767823,0.00049863,31]
[312718109,1706188830435,-500.0,0.00049863,31]
[312718110,1706188830465,-500.0,0.00049863,31]
[312718111,1706188830495,-4785.39,0.00049863,31]
[312718112,1706188830526,-757.11,0.00049863,31]
[312718113,1706188830555,-681.67,0.00049863,31]
[312718114,1706188830586,-500.0,0.00049863,31]
[312718115,1706188830615,-500.0,0.00049863,31]
[312718116,1706188830645,-500.0,0.00049863,31]
[312718117,1706188830674,-1195.74,0.00049863,31]
[312718118,1706188830703,-578.13,0.00049863,31]
[312718119,1706188830730,-500.0,0.00049863,31]
[312718120,1706188830757,-500.0,0.00049863,31]
[312718121,1706188830786,-500.0,0.00049863,31]
[312718122,1706188830816,-646.08,0.00049863,31]
[312718123,1706188830844,-500.0,0.00049863,31]
[312718124,1706188830874,-500.0,0.00049863,31]
[312718125,1706188830901,-537.75926593,0.00049863,31]
[312718126,1706188830932,-500.0,0.00049863,31]
[312718127,1706188830963,-500.0,0.00049863,31]
[312718128,1706188830993,-500.0,0.00049863,31]
[312718129,1706188831024,-543.76,0.00049863,31]
[312718130,1706188831052,-500.0,0.00049863,31]
[312718131,1706188831080,-668.94,0.00049863,31]
[312718132,1706188831110,-500.0,0.00049863,31]
[312718133,1706188831139,-500.0,0.00049863,31]
[312718134,1706188831169,-500.0,0.00049863,31]
[312718135,1706188831197,-500.0,0.00049863,31]
[312718136,1706188831224,-500.0,0.00049863,31]
[312718137,1706188831251,-500.0,0.00049863,31]
[312718138,1706188831278,-500.0,0.00049863,31]
[312718139,1706188831306,-624.44,0.00049863,31]
[312718140,1706188831333,-500.0,0.00049863,31]
[312718141,1706188831359,-500.0,0.00049863,31]
[312718142,1706188831385,-500.0,0.00049863,31]
[312718143,1706188831412,-500.0,0.00049863,31]
[312718144,1706188831438,-664.74,0.00049863,31]
[312718145,1706188831467,-500.0,0.00049863,31]
[312718146,1706188831494,-500.0,0.00049863,31]
[312718147,1706188831521,-500.0,0.00049863,31]
[312718148,1706188831550,-552.93,0.00049863,31]
[312718149,1706188831577,-500.0,0.00049863,31]
[312718150,1706188831606,-500.0,0.00049863,31]
[312718151,1706188831637,-569.49,0.00049863,31]
[312718152,1706188831666,-651.62,0.00049863,31]
[312718153,1706188831697,-538.01,0.00049863,31]
[312718154,1706188831726,-567.83,0.00049863,31]
[312718155,1706188831756,-500.0,0.00049863,31]
[312718156,1706188831786,-500.0,0.00049863,31]
[312718157,1706188831816,-3543.8,0.00049863,31]
[312718158,1706188831844,-500.0,0.00049863,31]
[312718159,1706188831873,-500.0,0.00049863,31]
[312718160,1706188831902,-500.0,0.00049863,31]
[312718161,1706188831930,-500.0,0.00049863,31]
[312718162,1706188831961,-500.0,0.00049863,31]
[312718163,1706188831991,-500.0,0.00049863,31]
[312718164,1706188832021,-500.0,0.00049863,31]
[312718165,1706188832050,-594.79,0.00049863,31]
[312718166,1706188832079,-500.0,0.00049863,31]
[312718167,1706188832109,-611.77,0.00049863,31]
[312718168,1706188832139,-502.34,0.00049863,31]
[312718169,1706188832168,-549.63,0.00049863,31]
[312718170,1706188832195,-500.0,0.00049863,31]
[312718171,1706188832223,-632.99294373,0.00049863,31]
[312718172,1706188832251,-513.18,0.00049863,31]
[312718173,1706188832280,-591.91,0.00049863,31]
[312718174,1706188832310,-500.0,0.00049863,31]
[312718175,1706188832341,-500.0,0.00049863,31]
[312718176,1706188832372,-892.35,0.00049863,31]
[312718177,1706188832399,-565.29,0.00049863,31]
[312718178,1706188832430,-500.0,0.00049863,31]
[312718179,1706188832458,-500.0,0.00049863,31]
[312718180,1706188832487,-500.0,0.00049863,31]
[312718181,1706188832517,-696.05,0.00049863,31]
[312718182,1706188832545,-500.0,0.00049863,31]
[312718183,1706188832573,-500.0,0.00049863,31]
[312718184,1706188832603,-503.96,0.00049863,31]
[312718185,1706188832632,-500.0,0.00049863,31]
[312718186,1706188832662,-500.0,0.00049863,31]
[312718187,1706188832697,-500.0,0.00049863,31]
[312718188,1706188832729,-1045.18,0.00049863,31]
[312718189,1706188832758,-500.0,0.00049863,31]
[312718190,1706188832787,-511.14169747,0.00049863,31]
[312718191,1706188832815,-500.0,0.00049863,31]
[312718192,1706188832844,-505.83,0.00049863,31]
[312718193,1706188832871,-8322.88,0.00049863,31]
[312718194,1706188832899,-500.0,0.00049863,31]
[312718195,1706188832928,-569.95,0.00049863,31]
[312718196,1706188832956,-616.19,0.00049863,31]
[312718197,1706188832985,-500.0,0.00049863,31]
[312718198,1706188833014,-500.0,0.00049863,31]
[312718199,1706188833245,-1085.14,0.00049863,31]
[312718200,1706188833286,-740.01,0.00049863,31]
[312718201,1706188833316,-500.0,0.00049863,31]
[312718202,1706188833344,-658.74,0.00049863,31]
[312718203,1706188833374,-500.0,0.00049863,31]
[312718204,1706188833403,-728.72,0.00049863,31]
[312718205,1706188833432,-500.0,0.00049863,31]
[312718206,1706188833460,-1773.53,0.00049863,31]
[312718207,1706188833488,-1240.04,0.00049863,31]
[312718208,1706188833516,-599.04,0.00049863,31]
[312718209,1706188833546,-808.35,0.00049863,31]
[312718210,1706188833573,-605.14,0.00049863,31]
[312718211,1706188833602,-500.0,0.00049863,31]
[312718212,1706188833630,-500.0,0.00049863,31]
[312718213,1706188833663,-880.58,0.00049863,31]
[312718214,1706188833692,-500.0,0.00049863,31]
[312718215,1706188833723,-500.0,0.00049863,31]
[312718216,1706188833752,-903.12,0.00049863,31]
[312718217,1706188833782,-545.45,0.00049863,31]
[312718218,1706188833810,-500.0,0.00049863,31]
[312718219,1706188833838,-3577.61,0.00049863,31]
[312718220,1706188833867,-500.0,0.00049863,31]
[312718221,1706188833895,-685.58,0.00049863,31]
[312718222,1706188833924,-562.88,0.00049863,31]
[312718223,1706188833952,-952.48,0.00049863,31]
[312718224,1706188833979,-500.0,0.00049863,31]
[312718225,1706188834007,-500.0,0.00049863,31]
[312718226,1706188834037,-500.0,0.00049863,31]
[312718227,1706188834068,-500.0,0.00049863,31]
[312718228,1706188834098,-818.92,0.00049863,31]
[312718229,1706188834131,-567.03,0.00049863,31]
[312718230,1706188834164,-500.0,0.00049863,31]
[312718231,1706188834196,-500.0,0.00049863,31]
[312718232,1706188834228,-702.34,0.00049863,31]
[312718233,1706188834259,-529.03,0.00049863,31]
[312718234,1706188834289,-500.0,0.00049863,31]
[312718235,1706188834319,-682.14,0.00049863,31]
[312718236,1706188834347,-506.1,0.00049863,31]
[312718237,1706188834376,-919.78,0.00049863,31]
[312718238,1706188834405,-500.0,0.00049863,31]
[312718239,1706188834436,-500.0,0.00049863,31]
[312718240,1706188834466,-1207.59,0.00049863,31]
[312718241,1706188834495,-500.0,0.00049863,31]
[312718242,1706188834524,-500.0,0.00049863,31]
[312718243,1706188834554,-500.0,0.00049863,31]
[312718244,1706188834591,-575.64,0.00049863,31]
[312718245,1706188834622,-500.0,0.00049863,31]
[312718246,1706188834652,-500.0,0.00049863,31]
[312718247,1706188834682,-500.0,0.00049863,31]
[312718248,1706188834711,-1305.94,0.00049863,31]
[312718249,1706188834741,-945.14,0.00049863,31]
[312718250,1706188834771,-668.31,0.00049863,31]
[312718251,1706188834801,-500.0,0.00049863,31]
[312718252,1706188834830,-538.49,0.00049863,31]
[312718253,1706188834859,-919.42,0.00049863,31]
[312718254,1706188834888,-621.93,0.00049863,31]
[312718255,1706188834919,-1198.03,0.00049863,31]
[312718256,1706188834948,-500.0,0.00049863,31]
[312718257,1706188834978,-500.0,0.00049863,31]
[312718258,1706188835009,-791.89,0.00049863,31]
[312718259,1706188835038,-500.0,0.00049863,31]
[312718260,1706188835069,-1243.05,0.00049863,31]
[312718261,1706188835099,-500.0,0.00049863,31]
[312718262,1706188835128,-500.0,0.00049863,31]
[312718263,1706188835158,-500.0,0.00049863,31]
[312718264,1706188835188,-558.35,0.00049863,31]
[312718265,1706188835218,-500.0,0.00049863,31]
[312718266,1706188835250,-500.0,0.00049863,31]
[312718267,1706188835293,-353.05105044,0.00049863,31]
[312718268,1706188835326,-500.0,0.00049863,31]
[312718269,1706188835358,-517.3,0.00049863,31]
[312718270,1706188835388,-689.62,0.00049863,31]
[312718271,1706188835419,-500.0,0.00049863,31]
[312718272,1706188835452,-504.11,0.00049863,31]
[312718273,1706188835482,-720.97,0.00049863,31]
[312718274,1706188835512,-2344.2,0.00049863,31]
[312718275,1706188835542,-500.0,0.00049863,31]
[312718276,1706188835572,-691.44,0.00049863,31]
[312718277,1706188835602,-1094.16,0.00049863,31]
[312718278,1706188835633,-550.56,0.00049863,31]
[312718279,1706188835662,-500.0,0.00049863,31]
[312718280,1706188835690,-518.45,0.00049863,31]
[312718281,1706188835719,-900.04,0.00049863,31]
[312718282,1706188835748,-500.0,0.00049863,31]
[312718283,1706188835778,-900.8,0.00049863,31]
[312718284,1706188835810,-500.0,0.00049863,31]
[312718285,1706188835840,-500.76,0.00049863,31]
[312718286,1706188835873,-521.94,0.00049863,31]
[312718287,1706188835903,-500.0,0.00049863,31]
[312718288,1706188835934,-279.1,0.00049863,31]
[312718289,1706188835969,-500.0,0.00049863,31]
[312718290,1706188835999,-890.01,0.00049863,31]
[312718291,1706188836030,-634.63,0.00049863,31]
[312718292,1706188836062,-500.0,0.00049863,31]
[312718293,1706188836091,-500.0,0.00049863,31]
[312718294,1706188836122,-500.0,0.00049863,31]
[312718295,1706188836152,-500.0,0.00049863,31]
[312718296,1706188836407,-1000.0,0.00049863,30]
[312718297,1706188836438,-4298.96,0.00049863,31]
[312718298,1706188836468,-500.0,0.00049863,31]
[312718299,1706188836498,-500.0,0.00049863,31]
[312718300,1706188836527,-500.0,0.00049863,31]
[312718301,1706188836559,-500.0,0.00049863,31]
[312718302,1706188836591,-500.0,0.00049863,31]
[312718303,1706188836622,-500.0,0.00049863,31]
[312718304,1706188836650,-834.57,0.00049863,31]
[312718305,1706188836677,-500.0,0.00049863,31]
[312718306,1706188836705,-500.0,0.00049863,31]
[312718307,1706188836732,-500.0,0.00049863,31]
[312718308,1706188836760,-2659.22,0.00049863,31]
[312718309,1706188836790,-500.0,0.00049863,31]
[312718310,1706188836818,-500.0,0.00049863,31]
[312718311,1706188836848,-706.5,0.00049863,31]
[312718312,1706188836879,-502.47,0.00049863,31]
[312718313,1706188836907,-500.0,0.00049863,31]
[312718314,1706188836935,-511.82,0.00049863,31]
[312718315,1706188836963,-500.0,0.00049863,31]
[312718316,1706188836991,-735.0,0.00049863,31]
[312718317,1706188837018,-500.0,0.00049863,31]
[312718318,1706188837046,-500.0,0.00049863,31]
[312718319,1706188837075,-372.78255692,0.00049863,31]
[312718320,1706188837104,-650.71,0.00049863,31]
[312718321,1706188837132,-500.0,0.00049863,31]
[312718322,1706188837161,-515.77,0.00049863,31]
[312718323,1706188837189,-500.0,0.00049863,31]
[312718324,1706188837217,-2609.6,0.00049863,31]
[312718325,1706188837245,-1356.34664087,0.00049879,30]
[312718326,1706188837274,-153.46651434,0.00049888,30]
[312718327,1706188837302,-156.51295806,0.00049889,30]
[312718328,1706188837330,-30417.09378274,0.00049898,30]
[312718329,1706188837358,-156.51295806,0.00049908,30]
[312718330,1706188837385,-156.51295806,0.00049912,30]
[312718331,1706188837413,-154.23863763,0.00049922,30]
[312718332,1706188837442,-428.88543574,0.00049926,30]
[312718333,1706188837470,-572.07246931,0.00049933,30]
[312718334,1706188837502,-154.2973801,0.00049941,30]
[312718335,1706188837534,-153.90506379,0.00049946,30]
[312718336,1706188837565,-161.46382068,0.00049976,30]
[312718337,1706188837594,-150.9730791,0.0004998,30]
[312718338,1706188837623,-339.47805576,0.00049986,30]
[312718339,1706188837653,-200.0,0.00049987,30]
[312718340,1706188837683,-400.83273352,0.00049993,30]
[312718341,1706188837714,-1064.53784352,0.0005,30]
[312718342,1706188837747,-361.88698474,0.0005,30]
[312718343,1706188837779,-5115.0,0.0005,30]
[312718344,1706188837810,-2500.0,0.0005,30]
[312718345,1706188837837,-15394.74495316,0.0005,30]
[312718346,1706188837865,-11567.77215691,0.0005,30]
[312718347,1706188837892,-300.0,0.0005,30]
[312718348,1706188837920,-317.05403242,0.0005,30]
[312718349,1706188837947,-3407.18094108,0.0005,30]
[312718350,1706188837974,-2000.0,0.0005,30]
[312718351,1706188838003,-1250.0,0.0005,30]
[312718352,1706188838031,-22906.0,0.0005,30]
[312718353,1706188838062,-67970.0,0.00050127,30]
[312718354,1706188838092,-1823.0,0.00050127,30]
[312718355,1706188838122,-431.0,0.00050127,30]
[312718356,1706188838151,-329.0,0.00050127,30]
[312718357,1706188838179,-500.0,0.00050136,31]
[312718358,1706188838206,-1224.41,0.00050136,31]
[312718359,1706188838233,-500.0,0.00050136,31]